[Event "Champions Showdown Kings 2025"]
[Site "Saint Louis"]
[Date "2025.03.04"]
[Round "1.2"]
[White "Caruana, Fabiano"]
[Black "Nakamura, Hikaru"]
[Result "1/2-1/2"]
[Annotator "TA"]
[ECO "C42"]
[WhiteElo "2803"]
[BlackElo "2802"]
[PlyCount "108"]
[EventDate "2025.03.02"]
[EventType "swiss"]
[EventCountry "USA"]
[SourceTitle "playchess.com"]
[Source "ChessBase"]
[SourceQuality "1"]
[TimeControl "900+10"]

{[%evp 12,108,62,54,56,48,57,51,44,43,81,78,89,72,104,98,106,100,131,105,129,73,122,132,124,108,111,117,104,87,90,83,94,79,107,91,101,80,93,85,89,80,89,84,89,80,99,63,77,77,77,77,77,77,77,77,77,77,77,77,77,77,77,8,14,14,26,8,8,0,8,8,8,8,8,8,8,8,8,8,8,8,8,8,10,8,8,0,0,0,0,0,0,0,0,0,0,0,0]} 1. e4 {[%emt 0:00:01]} e5 {[%emt 0:00:01]} 2. Nf3 {[%emt 0:00:02]} Nf6 {[%emt 0:00:14]} 3. Nxe5 {[%emt 0:00:28]} Nxe4 {[%emt 0:00:02]} 4. Qe2 {[%emt 0:00:01]} Qe7 {[%emt 0:00:01]} 5. Qxe4 {[%emt 0:00:02]} d6 {[%emt 0:00:04]} 6. d4 {[%emt 0:00:04]} dxe5 {[%emt 0:00:02]} 7. dxe5 {[%emt 0:00:02]} Nc6 {[%emt 0:00:01] C42: Petroff Defence: 3 Nxe5 and unusual White 3rd moves.} 8. Nc3 {[%emt 0:00:09]} Qxe5 {[%emt 0:00:02]} 9. Qxe5+ {[%emt 0:00:02]} Nxe5 {[%emt 0:00:01] White is slightly better.} 10. Nb5 {[%emt 0:00:03]} Bd6 {[%emt 0:00:40]} 11. Nxd6+ {[%emt 0:00:21]} cxd6 {[%emt 0:00:01]} 12. Be3 {[%emt 0:01:02]} Be6 {[%emt 0:00:29]} 13. O-O-O {[%emt 0:00:13]} Ke7 {[%emt 0:00:02]} 14. b3 {[%emt 0:00:14]} a6 $146 {[%emt 0:00:51]} (14... f6 15. h3 Rhc8 16. Kb2 Bf5 17. Rd2 g5 18. Be2 Rc6 19. Bd4 Rac8 20. c3 Kf7 {½-½ Warmerdam,M (2562)-Akhvlediani,I (2359) Braganca op 2nd 2021 (9)}) 15. h3 {[%emt 0:01:04]} h5 {[%emt 0:00:53]} 16. g3 {[%emt 0:01:05]} (16. f4 Nc6 17. Be2) 16... Rhd8 {[%emt 0:03:05]} (16... Rac8 $142) 17. Bg2 {[%emt 0:00:06]} Rd7 {[%emt 0:00:01]} 18. f4 {[%emt 0:01:03]} Nc6 {[%emt 0:00:06]} 19. Bf3 {[%emt 0:00:02]} Rh8 {[%emt 0:00:28]} 20. g4 {[%emt 0:00:35]} hxg4 {[%emt 0:00:02]} 21. hxg4 {[%emt 0:00:01]} Rxh1 {[%emt 0:00:57]} 22. Rxh1 {[%emt 0:00:02] Black must now prevent f5.} g6 {[%emt 0:02:30][%cal Bg7g6,Bg6g5][%mdl 32]} 23. Kb2 {[%emt 0:03:35]} Rc7 {[%emt 0:00:47]} 24. Bb6 {[%emt 0:00:37]} Rc8 {[%emt 0:00:01]} 25. c4 {[%emt 0:00:15]} g5 {[%emt 0:02:18]} 26. f5 {[%emt 0:01:56]} Ne5 {[%emt 0:00:01]} 27. Be2 {[%emt 0:03:11] A strong pair of Bishops.} ({But not} 27. Bxb7 Rb8 28. Be4 (28. fxe6 Rxb7 29. Bd4 Nxc4+ 30. Kc3 Na3 $14) 28... Rxb6 $11) 27... Bd7 {[%emt 0:00:02]} 28. Rh5 {[%emt 0:00:34]} f6 {[%emt 0:00:51]} 29. Rh7+ {[%emt 0:00:03]} Kf8 {[%emt 0:00:02] [#]} 30. Rh8+ $1 {[%emt 0:01:21]} Ke7 {[%emt 0:00:21]} 31. Rxc8 {[%emt 0:00:02]} Bxc8 $16 {[%emt 0:00:01][%mdl 4096] Endgame [#] KBB-KBN} 32. b4 $1 {[%emt 0:00:16][%cal Bb3b4,Bb4b5][%mdl 32]} Nd7 {[%emt 0:02:10]} 33. Bc7 {[%emt 0:00:15]} b6 {[%emt 0:00:01]} 34. Kc3 {[%emt 0:00:27] White is more active.} Bb7 {[%emt 0:00:01]} 35. a4 {[%emt 0:00:13]} Bc6 {[%emt 0:01:51]} 36. b5 {[%emt 0:00:32]} Bb7 {[%emt 0:00:22]} 37. a5 {[%emt 0:00:51]} ({White should play} 37. Kd4 $16) 37... bxa5 $11 {[%emt 0:00:08]} 38. Bxa5 {[%emt 0:00:02]} Ne5 {[%emt 0:00:37]} 39. Kd4 {[%emt 0:00:18]} Kd7 {[%emt 0:00:02] The position is equal.} 40. Bd1 {[%emt 0:00:12]} Nf3+ {[%emt 0:00:16]} 41. Ke3 {[%emt 0:00:11]} Ne5 {[%emt 0:00:01]} 42. Be2 {[%emt 0:00:05]} axb5 $1 {[%emt 0:00:20]} 43. cxb5 {[%emt 0:00:01]} Bg2 {[%emt 0:00:08]} 44. Bc3 {[%emt 0:00:05]} Kc7 {[%emt 0:00:03]} 45. Bd4 {[%emt 0:00:14]} Bd5 {[%emt 0:00:13]} 46. Kf2 {[%emt 0:00:05]} Be4 {[%emt 0:00:06]} 47. Kg3 {[%emt 0:00:03]} Bd5 {[%emt 0:00:01]} 48. Bd1 {[%emt 0:00:12]} Kb7 {[%emt 0:00:25]} 49. Ba4 {[%emt 0:00:11]} Bc4 {[%emt 0:00:10]} 50. b6 {[%emt 0:00:30]} Bd5 {[%emt 0:00:47]} 51. Bd1 {[%emt 0:00:11]} Kc6 {[%emt 0:00:14]} 52. Ba4+ {[%emt 0:00:02]} Kb7 {[%emt 0:00:01]} 53. Bd1 {[%emt 0:00:02]} Kc6 {[%emt 0:00:00]} 54. Ba4+ {[%emt 0:00:01]} Kb7 {[%emt 0:00:01] Weighted Error Value: White=0.08 (flawless) /Black=0.05 (flawless)   Mistake:       	White=2     	Black=1      Inaccurate:     	White=1     	Black=4      OK:         	White=15    	Black=22     Best:        	---       	Black=3      Strong:       	White=2     	Black=1} 1/2-1/2

[Event "Champions Showdown Kings 2025"]
[Site "Saint Louis"]
[Date "2025.03.04"]
[Round "1.2"]
[White "So, Wesley"]
[Black "Aronian, Levon"]
[Result "1-0"]
[Annotator "TA"]
[ECO "E46"]
[WhiteElo "2747"]
[BlackElo "2745"]
[PlyCount "97"]
[EventDate "2025.03.02"]
[EventType "swiss"]
[EventCountry "USA"]
[SourceTitle "playchess.com"]
[Source "ChessBase"]
[SourceQuality "1"]
[TimeControl "900+10"]

{[%evp 9,97,0,4,0,9,16,22,16,35,9,20,15,34,33,41,31,54,54,47,24,54,42,50,29,45,30,68,100,72,86,251,219,375,376,374,359,337,269,256,237,272,266,268,271,272,255,263,216,225,215,224,228,236,208,284,255,289,276,439,432,562,550,703,661,670,694,672,610,759,724,716,637,659,449,447,430,419,382,1000,677,1272,1170,1700,1784,5543,5026,6079,5764,2364,2339]} 1. d4 {[%emt 0:00:01]} Nf6 {[%emt 0:00:01]} 2. c4 {[%emt 0:00:01]} e6 {[%emt 0:00:02]} 3. Nc3 {[%emt 0:00:01]} Bb4 {[%emt 0:00:02]} 4. e3 {[%emt 0:00:05]} O-O {[%emt 0:00:05]} 5. Bd2 {[%emt 0:00:01]} c5 {[%emt 0:00:03]} 6. a3 {[%emt 0:00:03] E46: Nimzo-Indian: Rubinstein: 4 e3 0-0 5 Ne2 without early Bd3.} Bxc3 {[%emt 0:00:02]} 7. Bxc3 {[%emt 0:00:01]} Ne4 {[%emt 0:00:08]} 8. Ne2 {[%emt 0:00:05] The position is equal.} d6 {[%emt 0:00:06]} (8... b6 9. d5 d6 10. Rc1 e5 11. Ng3 Nxc3 12. Rxc3 f5 13. Bd3 e4 14. Bc2 Nd7 15. O-O Ne5 16. b4 Rf6 {0-1 So,W (2778)-Aronian,L (2785) American Cup Elim rapid 2022 (2.2)}) 9. f3 $5 {[%emt 0:01:29][%mdl 4] Leaves trodden paths.} Nxc3 {[%emt 0:00:39]} 10. Nxc3 {[%emt 0:00:01]} cxd4 $146 {[%emt 0:00:21]} ({Predecessor:} 10... Nc6 11. d5 exd5 12. cxd5 Ne5 13. Be2 f5 14. O-O f4 15. exf4 Rxf4 16. g3 Rd4 {0-1 Baches Garcia,G (2318)-Deac,B (2692) Titled Tuesday intern op 04th Feb Late blitz 2025 (1)}) 11. Qxd4 {[%emt 0:00:36]} Nc6 {[%emt 0:00:14]} 12. Qd2 {[%emt 0:00:04]} Qe7 {[%emt 0:01:54]} 13. Be2 {[%emt 0:01:02]} b6 {[%emt 0:00:16]} 14. O-O {[%emt 0:00:08]} Bb7 {[%emt 0:00:09]} 15. Rfd1 {[%emt 0:00:27]} Rfd8 {[%emt 0:00:01]} 16. b4 {[%emt 0:00:30][%cal Bb2b4,Bb4b5][%mdl 32]} h6 {[%emt 0:00:35]} 17. Rac1 {[%emt 0:00:03]} a5 {[%emt 0:00:14]} 18. b5 {[%emt 0:00:31]} Ne5 {[%emt 0:02:17]} 19. Na4 {[%emt 0:00:06]} Qg5 $2 {[%emt 0:00:08] This move loses the game for Black.} (19... d5 $16) 20. e4 $18 {[%emt 0:01:13]} (20. Nxb6 Bxf3 (20... Nxf3+ 21. Bxf3 Bxf3 22. h4 $16) 21. g3 Qh5 $19 (21... Rab8 $2 22. Na4 $19)) 20... Nd7 $2 {[%emt 0:02:33]} (20... Qxd2 21. Rxd2 d5 22. Nxb6 dxe4 23. Rxd8+ Rxd8) 21. Qxg5 {[%emt 0:00:20]} (21. Qxd6 Nc5 22. Qxb6 Nxa4 23. Qxb7 Qe3+ 24. Kf1 Nc3 25. Rxc3 (25. Rxd8+ Rxd8 26. Rxc3 Qxc3 $19) 25... Qxc3 $15) 21... hxg5 {[%emt 0:00:01]} 22. Rxd6 {[%emt 0:00:02][%cal Oc1d1]} Nc5 {[%emt 0:00:01]} 23. Rxb6 {[%emt 0:01:12]} Nxa4 {[%emt 0:00:01]} 24. Rxb7 {[%emt 0:00:02]} Nc5 {[%emt 0:00:02]} 25. Rc7 {[%emt 0:00:20]} Rdc8 {[%emt 0:00:02]} 26. Rxc8+ {[%emt 0:00:21]} Rxc8 {[%emt 0:00:01][%mdl 4096] Endgame KRB-KRN. White is two pawns up.} 27. Rd1 {[%emt 0:00:02]} Kf8 {[%emt 0:00:04]} 28. Kf2 {[%emt 0:00:08]} Ke7 {[%emt 0:00:01]} 29. Ke3 {[%emt 0:00:35]} f6 {[%emt 0:00:03]} 30. g3 {[%emt 0:00:13][%cal Bg2g3,Bg3h4][%mdl 32]} Rh8 {[%emt 0:00:08]} 31. Rh1 {[%emt 0:00:46]} (31. Kd4 Nb3+ 32. Ke3 (32. Kc3 Nc5 $18) 32... Rxh2 $14) 31... Kd6 {[%emt 0:00:12]} 32. h4 {[%emt 0:00:02]} gxh4 {[%emt 0:00:54]} 33. Rxh4 {[%emt 0:00:03]} Rxh4 {[%emt 0:03:22]} (33... Rg8 {keeps fighting.} 34. Rh7 Nd7) 34. gxh4 {[%emt 0:00:02] KB-KN. White is two pawns up.} e5 {[%emt 0:00:17]} 35. f4 {[%emt 0:00:20]} Ne6 {[%emt 0:00:25]} 36. fxe5+ {[%emt 0:05:10]} fxe5 {[%emt 0:00:02]} 37. Kf3 {[%emt 0:01:42]} Nd4+ {[%emt 0:04:24] [#]} 38. Kf2 $1 {[%emt 0:00:01]} Kc5 {[%emt 0:00:25]} 39. Bd3 {[%emt 0:00:08]} Ne6 {[%emt 0:00:11]} 40. Kg3 {[%emt 0:00:56]} Kd4 {[%emt 0:00:10]} 41. Bb1 {[%emt 0:01:12]} Nc5 {[%emt 0:01:10]} 42. b6 {[%emt 0:00:02] Black must now prevent Kg4.} Kxc4 {[%emt 0:00:11]} 43. Kg4 {[%emt 0:00:01]} Kb3 $2 {[%emt 0:00:11]} (43... Kb5 44. Kf5 Kxb6 45. Kxe5 Kc6) 44. Kf5 {[%emt 0:00:02] White is clearly winning.} Kxa3 {[%emt 0:00:05]} 45. Kg6 {[%emt 0:00:23]} ({Not} 45. Kxe5 Nd7+ 46. Kd6 Nxb6 $16) 45... Kb2 {[%emt 0:00:13] [#]} 46. Bd3 $1 {[%emt 0:00:05][%mdl 512]} a4 {[%emt 0:00:12][%cal Ba5a4,Ba4a3][%mdl 32]} (46... Kc1 47. Bb5) 47. Bc4 {[%emt 0:00:07]} a3 {[%emt 0:00:08]} 48. Kxg7 {[%emt 0:00:10]} Kc3 {[%emt 0:00:03]} 49. Bg8 {[%emt 0:00:45] Weighted Error Value: White=0.09 (flawless) /Black=0.40  Loses game:     	---       	Black=1      Mistake:       	---       	Black=3      Inaccurate:     	White=2     	Black=5      OK:         	White=13    	Black=13     Best:        	White=4     	Black=1} 1-0

[Event "Champions Showdown Kings 2025"]
[Site "Saint Louis"]
[Date "2025.03.04"]
[Round "1.2"]
[White "Dominguez Perez, Leinier"]
[Black "Robson, Ray"]
[Result "1/2-1/2"]
[Annotator "TA"]
[ECO "B90"]
[WhiteElo "2741"]
[BlackElo "2689"]
[PlyCount "90"]
[EventDate "2025.03.02"]
[EventType "swiss"]
[EventCountry "USA"]
[SourceTitle "playchess.com"]
[Source "ChessBase"]
[SourceQuality "1"]
[TimeControl "900+10"]

{[%evp 18,90,9,12,11,13,2,0,15,14,20,10,8,-10,-15,-12,0,-17,-12,-12,-10,-25,-9,-8,-12,-13,-11,-11,-12,-9,-9,-14,-16,-25,-4,-7,-6,-4,-2,-4,-2,-10,0,0,0,-43,0,0,0,0,0,0,0,0,0,0,0,0,0,0,0,0,0,0,0,0,0,0,0,0,0,0,0,0,0]} 1. e4 {[%emt 0:00:02]} c5 {[%emt 0:00:05]} 2. Nf3 {[%emt 0:00:02]} d6 {[%emt 0:00:01]} 3. d4 {[%emt 0:00:02]} cxd4 {[%emt 0:00:01]} 4. Nxd4 {[%emt 0:00:01]} Nf6 {[%emt 0:00:02]} 5. Nc3 {[%emt 0:00:02]} a6 {[%emt 0:00:02]} 6. Be3 {[%emt 0:00:07]} e5 {[%emt 0:00:04]} 7. Nf3 {[%emt 0:00:16]} Be7 {[%emt 0:00:04]} 8. Bc4 {[%emt 0:00:03]} Be6 {[%emt 0:00:04]} 9. Bb3 {[%emt 0:00:02]} O-O {[%emt 0:00:38]} 10. O-O {[%emt 0:00:06]} Qc8 {[%emt 0:05:56] The modern move. B90: Sicilian Najdorf: Unusual White 6th moves, 6 Be3 Ng4 and 6 Be3 e5.} 11. Qe2 {[%emt 0:01:57]} b5 {[%emt 0:01:04]} 12. Rfd1 {[%emt 0:00:13]} Nbd7 {[%emt 0:01:06]} 13. Bg5 {[%emt 0:00:35]} Ra7 $146 {[%emt 0:01:50]} (13... Bc4 14. Bxc4 Qxc4 15. Qxc4 bxc4 16. Bxf6 Nxf6 17. Nd5 Nxd5 18. Rxd5 Rab8 19. b3 Rfc8 {½-½ Guliyev,N (2552)-Ziska,H (2533) FRA-ch blitz final 2019 (1.2)}) 14. Nd5 {[%emt 0:03:24]} Bxd5 {[%emt 0:00:13]} 15. Bxd5 {[%emt 0:00:02]} Nxd5 {[%emt 0:01:50]} 16. Rxd5 {[%emt 0:00:03]} Nb6 {[%emt 0:00:21] [#] ...Bxg5 is the strong threat.} 17. Rd3 {[%emt 0:00:17]} Bxg5 {[%emt 0:00:34]} 18. Nxg5 {[%emt 0:00:02]} f6 {[%emt 0:00:35]} 19. Nf3 {[%emt 0:00:52]} (19. Rxd6 $2 {perishes.} Nc4 20. Rd3 fxg5 $19) 19... Rd7 {[%emt 0:01:37]} 20. Rad1 {[%emt 0:00:25]} Rfd8 {[%emt 0:00:12]} 21. Nh4 {[%emt 0:00:25]} d5 {[%emt 0:00:17]} 22. exd5 {[%emt 0:05:27]} Rxd5 {[%emt 0:00:07]} 23. Rxd5 {[%emt 0:00:02]} Rxd5 {[%emt 0:00:07]} 24. Rxd5 {[%emt 0:00:19]} Nxd5 $11 {[%emt 0:00:02][%mdl 4096] Endgame KQN-KQN} 25. Qe4 {[%emt 0:00:08]} Qc5 {[%emt 0:00:46]} 26. Nf5 {[%emt 0:00:28][%cal Oe4d5] [#]} Kf8 {[%emt 0:00:15]} 27. Ne3 {[%emt 0:02:30]} Nxe3 {[%emt 0:00:05]} 28. fxe3 {[%emt 0:00:02] KQ-KQ} Qd6 {[%emt 0:00:37]} 29. h3 {[%emt 0:00:35]} g6 {[%emt 0:00:36]} 30. Qb7 {[%emt 0:00:47]} Qc5 {[%emt 0:00:23][%csl LRc2,LRe3]} 31. Qe4 {[%emt 0:00:32]} Qd6 {[%emt 0:00:27]} 32. Kh2 {[%emt 0:00:01] The position is equal.} f5 {[%emt 0:00:06]} 33. Qb7 {[%emt 0:00:05]} e4+ {[%emt 0:00:13]} 34. Kh1 {[%emt 0:00:02]} Qd1+ {[%emt 0:00:05]} 35. Kh2 {[%emt 0:00:00]} Qd6+ {[%emt 0:00:01]} 36. Kh1 {[%emt 0:00:02]} Qc5 {[%emt 0:00:32]} 37. Qxh7 {[%emt 0:00:13]} Qxe3 {[%emt 0:00:04]} 38. Qxg6 {[%emt 0:00:07]} f4 {[%emt 0:00:11]} 39. Kh2 {[%emt 0:00:42]} f3 {[%emt 0:00:15]} 40. gxf3 {[%emt 0:00:29]} (40. Qxa6 Qf4+ 41. Kg1 Qc1+ 42. Kh2 Qxc2 43. Qf6+ Ke8 44. Qe6+ Kd8 45. Qd6+ Ke8 46. Qe6+ Kd8 47. Qd5+ Ke7 48. Qe5+ Kf7 49. Qf5+ Ke7 50. Qe5+ Kf7 51. Qf5+ Ke7 52. Qe5+) 40... Qe2+ {[%emt 0:00:09]} 41. Kg1 {[%emt 0:00:16]} Qe1+ {[%emt 0:00:11]} 42. Kh2 {[%emt 0:00:06]} Qe2+ {[%emt 0:00:02]} 43. Kg1 $1 {[%emt 0:00:12]} Qe1+ {[%emt 0:00:17]} 44. Kh2 {[%emt 0:00:08]} Qe2+ {[%emt 0:00:02]} 45. Kg1 {[%emt 0:00:13] Hoping for Qf5+.} Qe1+ {[%emt 0:00:04] Not much happened in this game.   Weighted Error Value: White=0.04 (flawless) /Black=0.04 (flawless)   Inaccurate:     	White=1     	Black=1      OK:         	White=12    	Black=14     Strong:       	White=1     	---} 1/2-1/2

[Event "Champions Showdown Kings 2025"]
[Site "Saint Louis"]
[Date "2025.03.04"]
[Round "1.3"]
[White "Nakamura, Hikaru"]
[Black "Caruana, Fabiano"]
[Result "0-1"]
[Annotator "TA"]
[ECO "A01"]
[WhiteElo "2802"]
[BlackElo "2803"]
[PlyCount "126"]
[EventDate "2025.03.02"]
[EventType "swiss"]
[EventCountry "USA"]
[SourceTitle "playchess.com"]
[Source "ChessBase"]
[SourceQuality "1"]
[TimeControl "3600+15"]

{[%evp 9,126,-4,-8,-5,-3,-12,-2,-6,-2,-1,3,-2,22,13,19,-27,-38,-27,-33,-51,-38,-42,-32,-30,-20,-18,-21,-30,-21,-39,-27,-43,-13,-63,-56,-59,-64,-58,-52,-43,-75,-119,-129,-124,-126,-125,-114,-120,-137,-132,-128,-119,-76,-78,-77,-89,-90,-175,-175,-175,-166,-159,-164,-177,-177,-183,-183,-183,-183,-190,-190,-320,-318,-301,-243,-258,-250,-414,-407,-383,-321,-375,-300,-329,-9,-21,0,0,0,0,0,0,0,0,0,0,0,0,0,0,0,0,0,0,0,-8,0,0,0,0,0,0,0,0,0,-29948,-29942,-11137,-6545]} 1. b3 {[%emt 0:00:03]} d5 {[%emt 0:01:52]} 2. Bb2 {[%emt 0:00:10]} Bg4 {[%emt 0:00:29]} 3. h3 {[%emt 0:00:54]} Bh5 {[%emt 0:00:09]} 4. g3 {[%emt 0:00:48]} c5 {[%emt 0:01:30]} 5. Bg2 {[%emt 0:00:32]} Nc6 {[%emt 0:00:02]} 6. Nf3 {[%emt 0:00:11] A01: Nimzowitsch-Larsen Opening.} Nf6 {[%emt 0:00:53]} 7. Ne5 {[%emt 0:01:54]} Nxe5 {[%emt 0:02:19]} 8. Bxe5 {[%emt 0:00:18] The position is equal.} e6 {[%emt 0:00:03]} 9. c4 $146 {[%emt 0:00:09]} (9. O-O Bd6 10. Bxd6 Qxd6 11. c4 Rd8 12. Nc3 d4 13. Nb5 Qb8 14. d3 O-O 15. Qd2 {½-½ Orban,L-Pal,F (2020) HUN-chT2 Barcza 0506 2005 (7)}) 9... Be7 {[%emt 0:01:22]} 10. cxd5 {[%emt 0:02:25]} exd5 {[%emt 0:00:24]} 11. d4 {[%emt 0:30:03]} O-O {[%emt 0:10:14]} 12. O-O {[%emt 0:00:09]} (12. Nc3 $142) 12... Ne4 $11 {[%emt 0:03:15]} 13. g4 {[%emt 0:00:05]} Bg6 {[%emt 0:01:10]} 14. f3 {[%emt 0:00:00][%cal Bf2f3,Bf3f4][%mdl 32]} Ng5 {[%emt 0:06:52]} 15. Nc3 {[%emt 0:02:50]} Rc8 {[%emt 0:02:51]} 16. Kh1 {[%emt 0:07:43]} Re8 {[%emt 0:08:22]} 17. f4 $1 {[%emt 0:05:05][%csl LRd5,LRg5]} Ne4 {[%emt 0:00:10]} 18. Nxe4 {[%emt 0:00:08]} (18. Bxe4 Bxe4+ 19. Nxe4 dxe4 20. dxc5 Rxc5 21. Qxd8 Rxd8 22. Rfd1) 18... Bxe4 {[%emt 0:00:02]} 19. Bxe4 {[%emt 0:00:18]} dxe4 {[%emt 0:00:02]} 20. dxc5 {[%emt 0:00:01]} Bxc5 {[%emt 0:00:17]} (20... Rxc5 {simplifies} 21. Qxd8 Rxd8 22. Rfd1 Rc2) 21. Rc1 {[%emt 0:00:02]} (21. Qxd8 $1 $11 Rexd8 22. g5) 21... Qh4 $15 {[%emt 0:05:13][%cal Rh4h3]} 22. Kg2 {[%emt 0:00:12][%cal Ob3b4]} Red8 {[%emt 0:00:09]} 23. Qe1 {[%emt 0:01:17]} Qxe1 {[%emt 0:00:06]} 24. Rfxe1 {[%emt 0:01:33]} f6 $36 {[%emt 0:00:02][%mdl 2048] Black is on the roll.} 25. Bb2 {[%emt 0:01:57]} Be3 $1 {[%emt 0:00:05][%csl LRc1,LRf4]} 26. Rc4 {[%emt 0:03:34]} (26. Rxc8 Rxc8 27. Rd1 Rc2 $19 (27... Bxf4 $2 28. Kf2 $19)) 26... Rxc4 {[%emt 0:00:14]} (26... Bxf4 27. Rxe4 Bd2 28. Rd1 $15) 27. bxc4 {[%emt 0:00:01]} Bxf4 $17 {[%emt 0:00:15][%mdl 4096] Endgame KRB-KRB. Black is a pawn up.} 28. Bc1 {[%emt 0:00:00] Inhibits Be3.} Bd2 {[%emt 0:06:26] Black is more active.} 29. Rd1 {[%emt 0:00:52] [#]} e3 {[%emt 0:00:01]} 30. Kf3 {[%emt 0:00:21]} Kf7 {[%emt 0:02:22]} 31. Ba3 {[%emt 0:00:08]} b6 {[%emt 0:01:28] Dodges Bc5} 32. c5 {[%emt 0:00:31]} b5 {[%emt 0:05:10]} 33. c6 {[%emt 0:00:31]} (33. Rb1 $17 {was worth a try.} a6 34. Ke4) 33... Rc8 $19 {[%emt 0:00:01]} 34. Bc5 {[%emt 0:00:04]} a6 {[%emt 0:00:08]} (34... Rxc6 35. Bxa7 b4 36. Bxe3 Bxe3 37. Kxe3 $15) 35. Bxe3 {[%emt 0:01:06]} Bxe3 {[%emt 0:00:02] KRB-KR} 36. Rd7+ {[%emt 0:00:01]} Kg6 {[%emt 0:00:02]} 37. Kxe3 {[%emt 0:00:01]} Rxc6 {[%emt 0:00:01] KR-KR. Black is a pawn up.} 38. Rd3 {[%emt 0:00:01]} h5 {[%emt 0:00:45]} 39. Kf3 {[%emt 0:00:21]} h4 {[%emt 0:01:05]} 40. Ra3 {[%emt 0:00:37]} (40. Rb3 $142) 40... b4 {[%emt 0:01:46]} 41. Ra4 {[%emt 0:00:48] [#]} Rc3+ $1 {[%emt 0:00:30]} 42. e3 {[%emt 0:00:01]} Rc2 {[%emt 0:01:01]} 43. Rxb4 $2 {[%emt 0:00:43]} (43. Rxa6 {only move.} Rh2 44. Kf4) 43... Rxa2 {[%emt 0:00:30]} 44. Rb6 {[%emt 0:00:10]} a5 {[%emt 0:00:32]} 45. Ra6 {[%emt 0:00:27]} a4 {[%emt 0:00:31]} 46. Kf4 {[%emt 0:01:02]} a3 $2 {[%emt 0:00:05]} ({Black should play} 46... Rf2+ $19 47. Ke4 Ra2) 47. g5 $11 {[%emt 0:00:22]} Rf2+ {[%emt 0:00:17]} 48. Kg4 {[%emt 0:00:03]} Rg2+ {[%emt 0:00:50]} 49. Kxh4 {[%emt 0:00:02]} Rxg5 {[%emt 0:00:01] ( -> ...Rg2)} 50. Rxa3 {[%emt 0:00:01]} Rg1 {[%emt 0:00:04] ( -> ...Kh6)} 51. Ra5 {[%emt 0:00:44]} Kf7 {[%emt 0:00:39]} 52. e4 {[%emt 0:00:34]} Ke6 {[%emt 0:00:09]} 53. Kh5 {[%emt 0:00:29]} Kf7 {[%emt 0:00:22]} 54. Kh4 {[%emt 0:00:13]} Rg2 {[%emt 0:00:04]} 55. Rb5 {[%emt 0:00:07]} Kg6 {[%emt 0:00:19]} 56. Ra5 {[%emt 0:00:26]} Kf7 {[%emt 0:00:04]} 57. Rb5 {[%emt 0:00:07]} g5+ {[%emt 0:00:20]} 58. Kh5 {[%emt 0:00:02]} Rg3 {[%emt 0:00:02]} 59. Rb7+ {[%emt 0:01:08]} Ke6 {[%emt 0:00:01]} 60. Kg6 {[%emt 0:00:11]} Rxh3 {[%emt 0:00:01]} 61. Rb6+ {[%emt 0:00:01]} Ke5 {[%emt 0:00:01] and ...g4 would now be decisive} 62. Rxf6 $2 {[%emt 0:00:01][%mdl 8192]} (62. Rb5+ $11 Kf4 63. Kxf6) 62... g4 {[%emt 0:00:14][%cal Oh3h6]} (62... Kxe4 63. Kxg5 Rh8 64. Rg6 $11) 63. Rf1 {[%emt 0:00:07]} g3 {[%emt 0:01:04] Weighted Error Value: White=0.28 (precise) /Black=0.14 (very precise)   Loses game:     	White=1     	---        Missed win:     	---       	Black=1      Mistake:       	White=5     	---        Inaccurate:     	White=1     	Black=2      OK:         	White=23    	Black=26     Best:        	White=7     	Black=4      Strong:       	White=1     	Black=2} ({Inferior is} 63... Kxe4 64. Kg5 $11) 0-1